Cogmind - Beta 15 @@@ ROGUE MODE // 2025.06.05 @ 02:06:56 Player: Wyvric Result: Destroyed by Executioner with Helical Railgun Performance ------------- Evolutions (8) 4000 Regions Visited (26) 5200 Robots Destroyed (474) 2370 Value Destroyed (21927) 21927 Prototype IDs (73) 1460 Alien Tech Used (2) 400 Bonus (12605) 12605 TOTAL SCORE: 47962 Bonus ------- Triggered High Security 500 High Alert Combat Kills 5659 Follower Combat Kills 2756 Entered Garrisons 400 Used RIF Installer 1000 Network Hubs Disabled 400 Aligned with FarCom 300 Met Zhirov 300 Built Enhanced Grunts 300 A7 Reached Mainframe 300 Met R17 at Cetus 500 Met R17 at Research 2000 Scanned by Researcher 500 Friendly Fire -2310 Cogmind --------- Core Integrity 0/1450 Matter 75/300 Energy 100/100 System Corruption 31% Temperature Cool (0) Movement Core (50) Location -2/Research Parts ------- > --- POWER (4) -------- (None) > --- PROPULSION (2) --- (None) > --- UTILITY (12) ----- (None) > --- WEAPON (5) ------- (None) > --- INVENTORY (5) ---- Makeshift Microdissipator Network Advanced Sensor Array Advanced Weapon Cycler Hacking Suite Enhanced Nova Cannon Peak State ------------ > --- POWER ------------ Multi-Quantum Reactor > --- PROPULSION ------- Wheeled Compact Exoskeleton > --- UTILITY ---------- Armored Scrap Engine 2N-1CE's Frost Array Huge Storage Unit Advanced Signal Interpreter Weapon Mount Advanced Weapon Cycler SHELL Armor Experimental EM Shield Advanced Force Field > --- WEAPON ----------- Enhanced Nova Cannon Hvy. Charged Gamma Construct/C > --- INVENTORY -------- Quantum Reactor Compact Wheel Compact Wheel Experimental Coolant Injector Makeshift Microdissipator Network Advanced Energy Well Advanced Matter Compressor Advanced Sensor Array Particle Accelerator Advanced Weapon Cycler Improved Propulsion Shielding Graphene Brace Hacking Suite Advanced Component Analysis Suite Dimensional Node Initializer Transdimensional Reconstructor Improved Arc Projector Gamma Rifle Gamma Rifle Phase Gun Quantum Rifle Railgun Guided Micro-nuke Launcher Z-bomb Delivery System [Rating: 179] Favorites ----------- Power Constructs Engine Deuterium Engine Power Core Light Nuclear Core Reactor Constructs Propulsion Constructs Wheel Constructs Utility Huge Storage Unit Device Armored Scrap Engine Storage Huge Storage Unit Processor Improved Signal Interpreter Hackware Hacking Suite Protection Medium Regenerative Plating Weapon Constructs Energy Gun Gatling Laser Energy Cannon Constructs Ballistic Gun Enhanced Autogun Ballistic Cannon Heavy Assault Cannon Launcher Smartbomb Launcher Slashing Weapon Longsword +1 Build | -11 -10 -10 -10 -9 -8 -8 -8 -8 -7 -7 -7 -5 -5 -5 -5 -5 -5 -5 -4 -4 -4 -4 -3 -3 -3 -2 ------- Run | Yrd Mat Min Exi Min Mat Gar Mat Gar Fac Sto Rec Fac Was Fac Ext Cet Arc Hub Fac Upp Upp Zhi Pro Res Tes Res Slots Evolved 16 | . . . . . 4 . . . 2 . . 4 . . . . . . 2 . . . . 2 . 2 Power 3 | . . . . . . . . . 1 . . 1 . . . . . . 1 . . . . . . . Propulsion . | . . . . . . . . . . . . . . . . . . . . . . . . . . . Utility 10 | . . . . . 2 . . . 1 . . 2 . . . . . . 1 . . . . 2 . 2 Weapon 3 | . . . . . 2 . . . . . . 1 . . . . . . . . . . . . . . Parts Attached 201 | 7 7 3 3 . 28 1 9 7 3 15 4 8 2 14 9 4 4 5 9 4 2 4 . 12 19 18 Power 13 | 1 2 . . . 2 1 1 . . 2 . . . . . . . . . . . 1 . . 2 1 Engine 6 | 1 . . . . 2 1 1 . . 1 . . . . . . . . . . . . . . . . Core 3 | . 2 . . . . . . . . 1 . . . . . . . . . . . . . . . . Reactor 4 | . . . . . . . . . . . . . . . . . . . . . . 1 . . 2 1 Propulsion 17 | 2 . 1 . . 5 . 2 2 . 2 . . . 1 2 . . . . . . . . . . . Treads . | . . . . . . . . . . . . . . . . . . . . . . . . . . . Leg . | . . . . . . . . . . . . . . . . . . . . . . . . . . . Wheel 17 | 2 . 1 . . 5 . 2 2 . 2 . . . 1 2 . . . . . . . . . . . Hover . | . . . . . . . . . . . . . . . . . . . . . . . . . . . Flight . | . . . . . . . . . . . . . . . . . . . . . . . . . . . Utility 108 | 2 3 1 2 . 11 . 1 5 3 1 3 6 2 11 6 3 4 4 6 1 2 2 . 9 10 10 Device 57 | 1 . . . . 3 . . 3 . . 2 3 2 9 4 . 3 1 4 1 2 1 . 7 5 6 Storage 11 | 1 1 . 1 . . . 1 . 1 . . 1 . 1 . 1 . . . . . . . 1 2 . Processor 9 | . . . . . 2 . . . . . . 2 . . . . . . 1 . . . . 1 2 1 Hackware 5 | . . . . . 2 . . . . . . . . 1 . . . 2 . . . . . . . . Protection 26 | . 2 1 1 . 4 . . 2 2 1 1 . . . 2 2 1 1 1 . . 1 . . 1 3 Artifact . | . . . . . . . . . . . . . . . . . . . . . . . . . . . Weapon 63 | 2 2 1 1 . 10 . 5 . . 10 1 2 . 2 1 1 . 1 3 3 . 1 . 3 7 7 Energy Gun 20 | 1 2 . . . 6 . . . . 2 1 . . . . . . . . . . . . 1 4 3 Energy Cannon 10 | . . . . . . . . . . . . 2 . . . . . 1 2 1 . . . 1 1 2 Ballistic Gun 20 | 1 . 1 1 . 3 . 5 . . 5 . . . . . . . . . . . 1 . 1 1 1 Ballistic Cannon 4 | . . . . . 1 . . . . 1 . . . . . . . . 1 1 . . . . . . Launcher 6 | . . . . . . . . . . 1 . . . 2 . 1 . . . . . . . . 1 1 Special Weapon . | . . . . . . . . . . . . . . . . . . . . . . . . . . . Impact Weapon . | . . . . . . . . . . . . . . . . . . . . . . . . . . . Slashing Weapon 3 | . . . . . . . . . . 1 . . . . 1 . . . . 1 . . . . . . Piercing Weapon . | . . . . . . . . . . . . . . . . . . . . . . . . . . . Special Melee Weapon . | . . . . . . . . . . . . . . . . . . . . . . . . . . . Unidentified Prototypes 33 | . . . . . 1 . 1 . . 5 1 . 2 1 1 2 1 2 1 . . 3 . 3 6 3 Corrupted Parts 2 | . . . . . . . . . . . . . . . . 1 . 1 . . . . . . . . System Corruption 13 | . . . . . . . . . . . . . . . . 9 . 4 . . . . . . . . Parts Lost 43 | . 3 4 . . 5 . . . . . 1 . . 2 2 . . 1 . . . . 1 . 1 23 Power 6 | . 1 . . . . . . . . . . . . . . . . . . . . . . . 1 4 Propulsion 9 | . . 1 . . 3 . . . . . . . . 2 1 . . . . . . . . . . 2 Utility 17 | . 1 1 . . . . . . . . 1 . . . 1 . . . . . . . . . . 13 Weapon 11 | . 1 2 . . 2 . . . . . . . . . . . . 1 . . . . 1 . . 4 Highest Loss Streak 13 | . 1 3 . . 4 . . . . . 1 . . 1 1 . . 1 . . . . 1 . 1 13 To Critical Strikes . | . . . . . . . . . . . . . . . . . . . . . . . . . . . Average Backups 21 | 4 12 13 15 19 19 19 19 17 18 23 21 22 21 21 22 22 24 24 24 23 24 23 24 24 23 21 Power . | 1 1 1 3 3 1 1 . . . . 1 1 . . 1 . . . . . . . . . . . Propulsion 3 | 2 5 5 6 6 5 4 4 2 2 3 2 3 3 2 3 4 3 3 2 2 2 3 2 2 3 3 Utility 10 | . 6 6 5 6 7 9 4 2 3 3 4 5 6 9 10 10 13 12 10 12 14 15 15 15 13 12 Weapon 7 | . . . . 3 5 5 9 12 12 17 13 13 10 8 7 8 7 8 10 9 5 4 3 3 4 3 Tool/Special . | . . . . . . . . . . . . . . . . . . . . . . . . . . . Unused Backups 168 | 1 5 . . 3 6 . 8 1 . 5 12 9 3 8 18 9 2 6 9 5 8 . 2 11 9 28 Power 15 | 1 1 . . 3 . . 1 . . . 1 . 1 . 3 1 . 1 . . . . . 1 1 . Propulsion 24 | . 1 . . . . . . . . 1 3 . . 1 5 2 . . 1 . . . 1 2 1 6 Utility 37 | . 3 . . . 4 . 3 . . 3 . 1 1 2 1 2 . 4 . . 2 . . 2 . 9 Weapon 90 | . . . . . 2 . 4 1 . 1 8 8 1 5 9 4 2 1 7 5 6 . 1 6 7 12 Tool/Special 2 | . . . . . . . . . . . . . . . . . . . 1 . . . . . . 1 Average Slot Usage (%) 65 | . 100 94 84 85 90 81 83 91 82 90 66 58 58 54 55 60 56 57 57 57 57 58 58 58 59 53 Engine 2 | . 12 . . . 8 9 9 9 7 7 5 2 . . . 3 1 . . 2 . . . . . . Core 2 | . 1 14 14 14 . . . . . 5 2 . . . 3 1 . . . 2 2 5 5 . . . Reactor 2 | . . . . . . . . . . . . 2 5 5 1 . 3 5 5 . 2 1 5 3 8 4 Wheel 8 | . 28 24 28 28 17 18 18 18 15 15 8 5 5 5 6 5 5 5 5 5 5 5 5 4 4 3 Device 13 | . 5 . . . 4 . . 7 7 7 16 17 17 12 12 10 6 11 11 15 15 14 19 24 24 23 Storage 6 | . 14 14 14 14 9 9 9 9 7 7 7 5 5 5 5 5 5 5 5 5 5 5 5 4 4 3 Processor 4 | . . . . . 13 9 2 . . . . 9 11 9 5 5 5 5 8 5 5 5 5 4 2 3 Protection 7 | . 8 14 14 14 7 . 6 8 13 15 5 . . . 4 10 15 10 10 9 10 10 6 4 4 4 Energy Gun 1 | . 14 2 . . 16 . . . . . 3 . . . . . . . . . . . . . 1 . Energy Cannon 3 | . . . . . . . . . . . 2 3 3 3 1 . 3 5 5 7 4 . 2 3 2 5 Ballistic Gun 4 | . 14 24 13 14 8 9 19 36 30 28 3 . . . . . . . . . . . . 2 . . Ballistic Cannon 1 | . . . . . 3 9 5 . . . . 3 1 1 3 4 1 . 5 1 . 5 2 . 1 . Slashing Weapon 1 | . . . . . . . . . . . 6 5 5 5 4 2 . . . 1 5 5 . . . . Peak Build Rating 179 | 7 12 12 28 29 42 42 44 43 46 54 69 94 98 109 109 108 115 112 118 108 110 112 114 145 161 179 Average Rating 90 | 5 9 11 16 28 37 42 40 40 44 49 57 82 94 100 94 94 109 110 111 103 105 103 109 129 143 164 On Entrance 71 | . 7 12 11 28 29 42 42 39 41 46 53 62 90 97 109 86 108 111 112 108 105 100 112 111 134 148 Naked Turns 28 | . . . . . . . . . . . . . . . . . . . . . . . . . . 28 Heaviest Build 216 | 13 35 35 62 62 85 69 86 82 129 139 140 139 130 147 172 175 169 164 172 159 160 178 183 184 186 216 Greatest Support 34 | 32 32 32 26 26 26 20 32 32 32 32 32 24 24 25 34 34 22 19 22 22 22 22 33 33 30 22 Greatest Overweight (x) 12 | . 1 2 2 2 6 3 3 2 4 4 10 5 5 6 12 7 8 8 9 7 7 8 8 5 9 10 Average Overweight (x) 4 | . . 1 1 2 3 3 2 1 2 3 4 4 5 5 5 5 7 8 7 6 6 7 5 4 6 7 Largest Inventory Capacity 25 | 8 15 15 20 20 20 20 20 20 25 25 25 25 25 25 25 25 25 25 25 25 25 25 25 25 25 25 Average Capacity 23 | 7 13 15 18 20 20 20 20 20 21 25 25 25 25 25 25 25 25 25 25 25 25 25 25 25 25 24 Most Carried 25 | 8 15 15 19 20 20 20 20 20 24 25 25 25 25 25 25 25 25 25 25 25 25 25 25 25 25 25 Average Carried 22 | 4 12 13 15 19 19 20 19 19 20 24 22 24 24 23 23 23 24 24 24 24 24 23 24 24 23 22 Final Capacity 25 | 8 15 15 20 20 20 20 20 20 25 25 25 25 25 25 25 25 25 25 25 25 25 25 25 25 25 25 Final Carried 25 | 8 15 14 18 20 20 20 20 20 24 25 25 23 25 20 24 25 25 25 25 25 23 24 25 24 20 25 Scrap Engine Consumption 375 | . . . . . . . . . . . 75 17 6 18 51 14 4 4 12 13 25 1 10 31 35 59 Constructs Created 5 | . . . . . . . . . . . 3 . . 1 1 . . . . . . . . . . . Constructs Modified 173 | . . . . . . . . . . . 21 9 5 8 20 6 4 . 10 7 13 . 4 20 17 29 Class Distribution -------------------- 29% | Generator-Construct 18% | Construct 11% | Commander-Construct 11% | Mutant 4% | Generator-Gunner 4% | Skirmisher 3% | Tank 3% | Generator-Tank 3% | Hacker-Skirmisher 3% | Generator-Skirmisher Dominant Class ---------------- Mutant | -10/Materials Mutant | -10/Mines Mutant | -10/Exiles Mutant | -9/Mines Scavenger-Gunner | -8/Materials Hacker-Skirmisher | -8/Garrison Hacker-Skirmisher | -8/Materials Skirmisher | -8/Garrison Tank | -7/Factory Tank | -7/Storage Construct | -7/Recycling Construct | -5/Factory Construct | -5/Waste Construct | -5/Factory Construct | -5/Extension Commander-Construct | -5/Cetus Commander-Construct | -5/Archives Commander-Construct | -5/Hub_04(d) Generator-Construct | -4/Factory Generator-Construct | -4/Upper Caves Generator-Construct | -4/Upper Caves Generator-Construct | -4/Zhirov Generator-Construct | -3/Proximity Caves Generator-Construct | -3/Research Generator-Gunner | -3/Testing Generator-Tank | -2/Research Resources | -11 -10 -10 -10 -9 -8 -8 -8 -8 -7 -7 -7 -5 -5 -5 -5 -5 -5 -5 -4 -4 -4 -4 -3 -3 -3 -2 ----------- Run | Yrd Mat Min Exi Min Mat Gar Mat Gar Fac Sto Rec Fac Was Fac Ext Cet Arc Hub Fac Upp Upp Zhi Pro Res Tes Res Matter Collected 11657 | 287 121 63 . 30 519 166 305 788 51 722 208 89 43 592 1023 183 257 88 576 353 355 32 623 945 1624 1614 Remotely . | . . . . . . . . . . . . . . . . . . . . . . . . . . . Salvage Created 27141 | 150 605 206 . 32 1112 473 656 942 94 876 2899 239 . 979 2914 417 345 251 365 647 1318 106 1025 1596 2880 6014 Parts 1175 | 9 38 7 . 2 54 28 30 53 3 56 149 11 . 42 130 18 18 14 12 19 35 1 28 64 113 241 Haulers Intercepted 2 | . . . . . 1 . . . . . . . . . . . . . . . . . . . 1 . Recyclers Shooed 4 | . . . . . . . 1 . . 1 1 . . . 1 . . . . . . . . . . . Parts Field Recycled . | . . . . . . . . . . . . . . . . . . . . . . . . . . . Retrieved Matter . | . . . . . . . . . . . . . . . . . . . . . . . . . . . Parts Self-Destructed 24 | . . . . . . . . . . . . . . . . . . . . 2 2 . 20 . . . Prevented 44 | . . . . . . . . . . . . . . . . . . . . 18 22 . 4 . . . Kills | -11 -10 -10 -10 -9 -8 -8 -8 -8 -7 -7 -7 -5 -5 -5 -5 -5 -5 -5 -4 -4 -4 -4 -3 -3 -3 -2 ------- Run | Yrd Mat Min Exi Min Mat Gar Mat Gar Fac Sto Rec Fac Was Fac Ext Cet Arc Hub Fac Upp Upp Zhi Pro Res Tes Res Combat Hostiles Destroyed 342 | . 17 5 . 2 23 14 12 20 . 12 5 3 . 14 28 4 1 4 5 10 16 . 14 23 34 76 Melee 2 | . . . . . . . . . . . 1 . . . 1 . . . . . . . . . . . Guns 95 | . 17 5 . 2 18 13 3 20 . 12 4 . . . . . . . . . . . . . . 1 Cannons 166 | . . . . . 5 1 7 . . . . 3 . 5 23 . 1 4 3 5 8 . 13 17 22 49 AOE 27 | . . . . . . . 2 . . . . . . 5 . . . . . . . . . 3 4 13 Classes Destroyed 25 | 3 4 . . . 3 . 4 2 . . 2 . . . 1 . . . . 1 2 . . . 1 2 Worker 22 | 2 . . . . . . 3 . 1 2 . . . 1 6 . . . . . . . . 1 1 5 Builder 30 | . . . . . 1 . . . . 1 20 . . . 2 . . 1 . . . . . . 2 3 Tunneler 5 | 3 . . . . 1 . . . . . . . . . 1 . . . . . . . . . . . Hauler 2 | . . . . . 1 . . . . . . . . . . . . . . . . . . . 1 . Recycler 47 | 1 . . . . 2 . 1 . 1 2 27 . . . 5 . . . . . . . . 2 3 3 Minesweeper 1 | . . . . . . . . . . . . . . . . . . . . 1 . . . . . . Mechanic 6 | . . . . . . . 1 . . . . . . . . . . . . . . . . . 1 4 Operator 9 | . 1 . . . . . . . . . . . . . . . 7 . . . . . . . . 1 Watcher 12 | . . . . . . . 1 . . . . . . . . 1 . . . . . . . . 2 8 Swarmer 47 | . 6 . . 2 8 4 3 3 . . . . . . 2 . . . . 3 1 . 5 9 . 1 Grunt 145 | . 10 5 . . 10 3 6 7 . 3 . 1 . 9 14 . . 2 . 5 8 . 6 8 20 28 Brawler 10 | . . . . . . . 1 1 . 1 . . . . . . . . . 1 . . 1 . 1 4 Duelist 6 | . . . . . . . . 2 . . . . . 1 . . . . . . . . 1 . 1 1 Researcher 1 | . . . . . . . . . . . . . . . . . . . . . . . . . 1 . Sentry 53 | . . . . . 5 7 2 4 . 6 2 2 . 2 7 . 1 1 1 1 1 . 1 1 . 9 Specialist 2 | . . . . . . . . . . . . . . . . . . . . . . . . . . 2 Hunter 25 | . . . . . . . . 1 . 1 . . . 1 3 . . . 2 . . . . 4 4 9 Programmer 37 | . . . . . . . . 2 . 1 . . . 1 . . . . 2 . 2 . . 1 8 20 Heavy 2 | . . . . . . . . . . . . . . . . . . . . . . . . . . 2 Behemoth 2 | . . . . . . . . . . . . . . . 1 . . . . . 1 . . . . . Cetus Guard 4 | . . . . . . . . . . . . . . . . 4 . . . . . . . . . . Lightning 1 | . . . . . . . . . . . . . . . . . . 1 . . . . . . . . Subdweller 1 | . 1 . . . . . . . . . . . . . . . . . . . . . . . . . Scientist 2 | . . . . . . . . . . . 2 . . . . . . . . . . . . . . . Scrapper 3 | . . . . . . . . . . . 3 . . . . . . . . . . . . . . . Decomposer 1 | . . . . . . . . . . . . . . . . . . . . . . . 1 . . . Samaritan 3 | . . . . . . . . . . . . . . . . . . . . . 3 . . . . . Master Thief 3 | . . . . . . . . . . . . . . . . . . . . . 3 . . . . . Thug 1 | . . . . . . . 1 . . . . . . . . . . . . . . . . . . . Savage 1 | . . . . . . . . . . . . . . . 1 . . . . . . . . . . . Butcher 1 | . . . . . . . . . . . . . . . 1 . . . . . . . . . . . Guerrilla 1 | . . . . . . . 1 . . . . . . . . . . . . . . . . . . . Best Kill Streak 13 | 2 7 2 . 2 13 6 5 5 2 4 4 3 . 8 6 3 2 2 2 4 4 . 4 7 12 10 Combat Bots Only 9 | . 7 2 . 2 5 6 3 5 . 3 2 3 . 8 6 2 1 2 2 4 4 . 4 7 9 8 Max Kills in Single Turn 5 | 1 2 1 . 1 2 2 4 2 1 2 1 1 . 2 2 2 1 1 1 1 1 . 1 3 4 5 Gunslinging 1 | . 1 . . . 1 . . 1 . . . . . . . . . . . . . . . . . . Exploded 4 | . . . . . . . 2 . . . . . . 1 . . . . . . . . . 3 4 3 Melee 1 | . . . . . . . . . . . 1 . . . 1 . . . . . . . . . . . Uniques/NPCs Destroyed 1 | . . . . . . . . . . . . . . . . 1 . . . . . . . . . . A7 (-5/Cetus) Combat | -11 -10 -10 -10 -9 -8 -8 -8 -8 -7 -7 -7 -5 -5 -5 -5 -5 -5 -5 -4 -4 -4 -4 -3 -3 -3 -2 -------- Run | Yrd Mat Min Exi Min Mat Gar Mat Gar Fac Sto Rec Fac Was Fac Ext Cet Arc Hub Fac Upp Upp Zhi Pro Res Tes Res Hostile Shots Fired 1899 | . 102 37 . 6 83 53 14 32 . 111 38 3 . 55 111 16 14 42 48 41 60 . 83 116 241 593 Missed 535 | . 35 12 . 3 26 6 4 7 . 38 5 . . 19 26 9 4 11 12 12 15 . 22 34 61 174 Hits 1364 | . 67 25 . 3 57 47 10 25 . 73 33 3 . 36 85 7 10 31 36 29 45 . 61 82 180 419 Melee 30 | . . . . . . . . . . 1 . . . . . . . . . . 2 . 3 . 2 22 Projectile 1334 | . 67 25 . 3 57 47 10 25 . 72 33 3 . 36 85 7 10 31 36 29 43 . 58 82 178 397 AOE 1 | . . . . . . . . . . . . . . . . . . . . . . . . . . 1 Critical Strikes 69 | . 1 2 . 1 4 1 2 . . 1 . . . 1 5 1 . 2 3 . . . 5 . 14 26 Actively Blocked 16 | . . . . . . . . . . . . . . . . . . 1 . . . . . . . 15 Damage Taken 21056 | . 649 348 . 25 808 521 219 537 . 669 432 56 . 820 1993 141 259 717 591 464 836 . 771 910 2121 7169 Core 2551 | . 135 85 . . 100 54 . 8 . 40 36 20 . 64 87 25 55 103 107 . 76 . 39 . 139 1378 Absorbed by Shields 5376 | . . . . . . 16 . . . . . 13 . . 79 98 . . . 45 51 . 592 885 1078 2519 Redirected to Shielding 228 | . . . . . . . . . . . . . . . . . . 29 8 . 39 . . . 43 109 Ignored by Resistances 2070 | . . . . . . . . . . . . . . . . . . 259 96 . . . . . 326 1389 Regen/Repaired (Parts) 8217 | . . . . . 111 . 209 . . . 50 18 . 100 1012 94 290 1 408 413 736 . 639 994 1109 2033 Core Remaining (%) 72 | 100 . . . 12 . . . 70 . . 89 . . . . . . 64 . . . . 80 . 89 . Volleys Fired 1052 | 17 53 31 . . 48 17 28 39 2 39 3 6 . 33 85 17 21 18 11 24 45 . 44 80 105 286 Largest 4 | 2 2 2 . . 4 1 4 4 4 4 4 1 . 1 1 2 1 1 3 1 1 . 1 1 1 4 Hottest 377 | 60 70 70 . . 268 50 100 100 100 100 151 109 . 69 142 224 224 82 219 166 250 . 125 148 113 377 Shots Fired 1591 | 34 106 58 . 6 141 41 48 156 8 150 23 6 . 34 85 19 20 18 18 24 45 . 44 80 106 321 Gun 788 | 34 106 58 . 6 126 24 25 156 8 150 23 . . . . . . . . . . . . . 6 66 Cannon 763 | . . . . . 15 17 23 . . . . 6 . 23 80 8 20 16 18 24 45 . 44 80 98 246 Launcher 40 | . . . . . . . . . . . . . . 11 5 11 . 2 . . . . . . 2 9 Special . | . . . . . . . . . . . . . . . . . . . . . . . . . . . Kinetic 791 | 17 53 48 . 6 66 41 48 156 8 150 20 . . 19 72 . . . 6 . . . 16 4 38 23 Thermal 483 | 17 23 10 . . 63 . . . . . 3 6 . 4 8 8 20 16 2 1 6 . 18 61 26 191 Explosive 13 | . . . . . . . . . . . . . . . . . . 2 . . . . . . 2 9 Electromagnetic 304 | . 30 . . . 12 . . . . . . . . 11 5 11 . . 10 23 39 . 10 15 40 98 Robot Hit Streak 43 | 6 22 6 . 5 15 20 18 11 4 12 17 9 . 13 13 3 3 9 3 19 12 . 15 24 43 16 Robot Miss Streak 5 | 2 3 4 . 1 3 1 2 4 1 4 2 1 . 2 4 1 4 2 3 3 2 . 2 3 2 5 Penetration Max 1 | . . . . . 1 1 1 . . . . . . . . . . . . . . . . . 1 1 Secondary Targets 13 | . 4 . . . 5 . . 2 . 2 . . . . . . . . . . . . . . . . Max Gunslinging Chain 1 | . 1 . . . 1 . . 1 . 1 . . . . . . . . . . . . . . . . Capacitor 180 | . . . . . . . . . . . . . . . . . . . . . . . . 41 66 73 Autonomous 52 | . . . . 6 . 24 5 . . . 17 . . . . . . . . . . . . . . . Shots Hit Robots 1141 | 22 66 37 . 5 95 34 30 90 4 81 83 5 . 15 82 7 10 8 10 20 34 4 39 55 92 213 Core Hits 588 | 11 33 17 . 2 44 15 15 36 2 37 40 6 . 19 64 15 6 14 4 9 13 1 16 32 55 82 Critical Kills 10 | . . . . . 1 . . . . . . . . 1 4 . 1 2 . . . . . . . 1 Critical Parts Destroyed 14 | 1 . . . 1 1 . . 2 . . . . . . 6 1 1 . . . . . . . . 1 Critical Strikes 44 | 1 2 . . 1 8 1 3 2 . . 1 . . 1 11 1 2 2 . . . . 1 . . 7 Burn 8 | . 2 . . . 3 . . . . . . . . . . . . . . . . . 1 . . 2 Meltdown 1 | . . . . . . . . . . . . . . . . . . . . . . . . . . 1 Destroy 25 | 1 . . . 1 2 . . 2 . . . . . 1 10 1 2 2 . . . . . . . 3 Blast 7 | . . . . . 3 1 3 . . . . . . . . . . . . . . . . . . . Corrupt 1 | . . . . . . . . . . . . . . . . . . . . . . . . . . 1 Sever 2 | . . . . . . . . . . . 1 . . . 1 . . . . . . . . . . . Melee Attacks 91 | . . . . . . . . . . 5 63 4 . . 14 . . . . . . 4 1 . . . Impact . | . . . . . . . . . . . . . . . . . . . . . . . . . . . Slashing 91 | . . . . . . . . . . 5 63 4 . . 14 . . . . . . 4 1 . . . Piercing . | . . . . . . . . . . . . . . . . . . . . . . . . . . . Sneak Attacks 64 | . . . . . . . . . . . 51 1 . . 11 . . . . . . . 1 . . . Combat Hostiles . | . . . . . . . . . . . . . . . . . . . . . . . . . . . Follow-up Attacks . | . . . . . . . . . . . . . . . . . . . . . . . . . . . Damage Inflicted 72246 | 209 729 335 . 185 2166 1297 1878 1636 68 1427 6100 595 . 1545 6785 1911 1131 1535 725 1145 3152 344 2950 4108 8319 21971 Guns 9417 | 209 729 335 . 185 1566 705 281 1636 68 1427 635 . . . . . . . . . . . . . 191 1450 Cannons 45847 | . . . . . 600 592 1126 . . . . 525 . 522 5471 629 1131 949 597 1123 3152 . 2881 3909 7090 15550 Explosions 10087 | . . . . . . . 471 . . . . . . 1023 367 1282 . 586 128 22 . . . 199 1038 4971 Melee 6895 | . . . . . . . . . . . 5465 70 . . 947 . . . . . . 344 69 . . . Ramming . | . . . . . . . . . . . . . . . . . . . . . . . . . . . Kinetic 20907 | 90 249 259 . 185 1176 1297 1407 1636 68 1427 578 . . 382 4839 . . . 303 . . . 1254 70 3146 2541 Thermal 23167 | 119 189 76 . . 782 . . . . . 57 525 . 211 632 931 1131 949 128 22 680 . 1200 3462 2701 9372 Explosive 7066 | . . . . . . . 471 . . . . . . . . . . 586 . . . . . . 1038 4971 Electromagnetic 14211 | . 291 . . . 208 . . . . . . . . 952 367 980 . . 294 1123 2472 . 427 576 1434 5087 Impact . | . . . . . . . . . . . . . . . . . . . . . . . . . . . Slashing 6895 | . . . . . . . . . . . 5465 70 . . 947 . . . . . . 344 69 . . . Piercing . | . . . . . . . . . . . . . . . . . . . . . . . . . . . Highest Corruption 31 | . . . . . . . . . . . . . . 1 3 12 12 12 1 1 3 3 3 . 3 31 Average Corruption 3 | . . . . . . . . . . . . . . 1 1 3 9 4 1 1 2 3 3 . 2 5 Corruption Purged 19 | . . . . . . . . . . . . . . . . . 12 . . 1 . . . . . 6 Corruption Blocked . | . . . . . . . . . . . . . . . . . . . . . . . . . . . Effects 234 | . . . . . . . . . . . . . . 5 14 15 21 1 3 . 42 7 39 . 17 70 Message Errors 61 | . . . . . . . . . . . . . . 1 . 7 5 . 3 . 11 1 10 . 1 22 Matter Fused 51 | . . . . . . . . . . . . . . 1 5 2 6 1 . . 14 3 7 . 4 8 Heat Flow Errors 28 | . . . . . . . . . . . . . . . 2 2 2 . . . 5 1 6 . 2 8 Energy Discharges 27 | . . . . . . . . . . . . . . . . 1 3 . . . 6 1 6 . 3 7 Parts Rejected 3 | . . . . . . . . . . . . . . . . . . . . . . . 1 . . 2 Parts Fused 6 | . . . . . . . . . . . . . . 1 1 2 . . . . . . . . 2 . Data Loss (minor) 24 | . . . . . . . . . . . . . . 1 5 . 1 . . . 2 1 7 . 1 6 Data Loss (major) 17 | . . . . . . . . . . . . . . . 1 . 3 . . . 2 . 2 . 3 6 Misfires 4 | . . . . . . . . . . . . . . 1 . . . . . . . . . . 1 2 Alerts 4 | . . . . . . . . . . . . . . . . . . . . . 2 . . . . 2 Misdirections 3 | . . . . . . . . . . . . . . . . . . . . . . . . . . 3 Weapon Failures 6 | . . . . . . . . . . . . . . . . 1 1 . . . . . . . . 4 Overload Shots . | . . . . . . . . . . . . . . . . . . . . . . . . . . . Overflow Damage 6927 | . . . . . 39 25 249 . . . 1639 45 . 18 194 44 232 14 4 103 416 71 299 154 538 2843 Projectiles 4293 | . . . . . 39 25 221 . . . . 5 . 18 34 . 232 14 4 103 416 . 299 141 422 2320 Explosions 724 | . . . . . . . 28 . . . . . . . . 44 . . . . . . . 13 116 523 Melee 1910 | . . . . . . . . . . . 1639 40 . . 160 . . . . . . 71 . . . . Knockbacks 77 | . . . . . 5 1 7 . . . . . . 2 16 . . . . . . . 3 . 34 9 Impact . | . . . . . . . . . . . . . . . . . . . . . . . . . . . Kinetic 67 | . . . . . 4 1 5 . . . . . . 2 15 . . . . . . . 3 . 28 9 Secondary 10 | . . . . . 1 . 2 . . . . . . . 1 . . . . . . . . . 6 . Self-Inflicted Damage 213 | . . . . . . . 54 . . . . . . . 60 . . 31 68 . . . . . . . Shots 9 | . . . . . . . 1 . . . . . . . 5 . . 2 1 . . . . . . . Rammed . | . . . . . . . . . . . . . . . . . . . . . . . . . . . Targets Rammed . | . . . . . . . . . . . . . . . . . . . . . . . . . . . Kicked . | . . . . . . . . . . . . . . . . . . . . . . . . . . . Crushed . | . . . . . . . . . . . . . . . . . . . . . . . . . . . Highest Temperature 461 | 40 141 357 . . 429 20 233 460 70 319 102 57 . 317 315 286 375 320 300 312 432 114 461 432 361 309 Average Temperature 106 | 18 51 112 . . 118 10 54 140 40 108 47 31 . 105 104 132 121 131 125 115 127 62 131 121 96 72 Received Heat Transfer 3375 | . 180 231 . . 450 138 117 117 . 177 168 15 . 162 389 13 27 144 9 67 99 . 88 28 381 375 Effects 29 | . . 1 . . 1 . . 2 . 1 . . . . . . 1 2 1 . . . . 4 10 6 Shutdowns 3 | . . . . . . . . . . . . . . . . . 1 . . . . . . . 2 . Energy Bleed 6 | . . . . . . . . 1 . 1 . . . . . . . . 1 . . . . . 3 . Interference 18 | . . . . . . . . 1 . . . . . . . . . 2 . . . . . 4 5 6 Short Circuit 1 | . . . . . 1 . . . . . . . . . . . . . . . . . . . . . Damage (minor) 1 | . . 1 . . . . . . . . . . . . . . . . . . . . . . . . Siege Activations . | . . . . . . . . . . . . . . . . . . . . . . . . . . . Martial Activations . | . . . . . . . . . . . . . . . . . . . . . . . . . . . Shielding Activations . | . . . . . . . . . . . . . . . . . . . . . . . . . . . Robots Disrupted . | . . . . . . . . . . . . . . . . . . . . . . . . . . . Combat Hostiles . | . . . . . . . . . . . . . . . . . . . . . . . . . . . Robots Corrupted 58 | . . . . . . . . . . . . . . 4 4 4 . . 2 6 9 . 1 2 9 17 Combat Hostiles 50 | . . . . . . . . . . . . . . 4 4 4 . . 2 5 9 . 1 2 8 11 Parts Fried 136 | . . . . . . . . . . . . . . 6 5 5 . . 3 13 32 . 3 8 9 52 Impact Corruptions 1 | . . . . . . . . . . . . . . . . . . . . . . . . . 1 . Robots Melted 3 | . . . . . . . . . . . . . . . . . . . . . . . . 1 . 2 Combat Hostiles 3 | . . . . . . . . . . . . . . . . . . . . . . . . 1 . 2 Parts Melted 49 | 1 1 . . . 1 . . 1 . . 1 . . . 3 . . 1 . . 2 . 1 9 7 21 Heat Transferred 14397 | 275 703 222 . . 1739 . . . . . 95 75 . 150 350 309 370 296 100 50 222 . 900 2024 2188 4329 Parts Sabotaged . | . . . . . . . . . . . . . . . . . . . . . . . . . . . Parts Stolen 2 | . . . . . . . . . . . . . . . . . . . . . 2 . . . . . Parts Stripped . | . . . . . . . . . . . . . . . . . . . . . . . . . . . Power Chain Reactions 7 | . . . . . . . . . . . . . . 2 . 2 . . 1 1 . . . 1 . . Alert | -11 -10 -10 -10 -9 -8 -8 -8 -8 -7 -7 -7 -5 -5 -5 -5 -5 -5 -5 -4 -4 -4 -4 -3 -3 -3 -2 ------- Run | Yrd Mat Min Exi Min Mat Gar Mat Gar Fac Sto Rec Fac Was Fac Ext Cet Arc Hub Fac Upp Upp Zhi Pro Res Tes Res Maximum Alert Level 5 | . . . . . 1 2 2 2 1 1 . . . 5 5 3 2 1 . . . . . 1 3 5 Low Security (%) 52 | 100 100 100 . 100 74 19 49 21 6 37 100 100 100 26 . . 54 93 100 . . . . 72 9 . Level 1 20 | . . . . . 25 63 44 43 93 62 . . . 17 . . 23 6 . . . . . 27 43 29 Level 2 7 | . . . . . . 17 6 35 . . . . . 3 1 . 21 . . . . . . . 20 16 Level 3 10 | . . . . . . . . . . . . . . 11 49 100 . . . . . . . . 26 21 Level 4 6 | . . . . . . . . . . . . . . 37 37 . . . . . . . . . . 15 Level 5 1 | . . . . . . . . . . . . . . 3 12 . . . . . . . . . . 2 High Security 1 | . . . . . . . . . . . . . . . . . . . . . . . . . . 14 Max Security . | . . . . . . . . . . . . . . . . . . . . . . . . . . . Peak Influence 2104 | 10 184 72 . 53 264 495 545 556 291 349 155 137 22 1616 1682 1062 584 267 119 . . . . 350 805 2104 Initial 932 | . . 71 . . . 133 241 . 291 86 131 137 11 . 785 932 376 . 119 . . . . 112 175 413 Average 357 | 1 52 15 . 11 158 308 182 338 239 217 19 50 2 720 1107 972 223 53 49 . . . . 159 480 915 Influence Increases 15596 | 30 545 183 . 53 750 362 680 596 10 764 415 218 22 2417 1865 327 306 469 158 285 325 5 405 702 1139 2565 Destroy 0b10 Robot/C 8160 | . 320 160 . 40 480 280 340 460 . 340 60 60 . 780 960 160 80 120 100 200 260 . 280 460 700 1520 Destroy 0b10 Robot/NC 765 | 30 5 . . . 25 . 35 . 10 30 250 . . 20 90 10 35 15 . 5 10 5 5 15 50 120 Destroy Leader 1480 | . 80 20 . 10 112 10 104 40 . 132 . 20 . 192 114 . . 24 30 20 40 . 30 80 96 326 Allied During Kill 1621 | . . 3 . . 2 . 50 32 . 118 22 . . 639 417 110 115 113 . . . . . . . . Successful Hack 317 | . 20 . . . 19 20 9 14 . 22 22 13 . 18 7 9 . . . . . . . 75 7 62 Select Force Hacks 110 | . 30 . . . . . . . . . 30 . . . . . . 50 . . . . . . . . Disable Machine 705 | . 15 . . . 30 . 60 . . 120 30 15 . 75 60 . 60 60 . . . . . . 120 60 Destroy Structure 1378 | . . . . 3 7 22 37 5 . 2 1 10 22 378 112 38 16 72 28 . . . . 72 166 387 Advance Influence 100 | . . . . . . . . . . . . 100 . . . . . . . . . . . . . . Partial Spotted 15 | . . . . . 15 . . . . . . . . . . . . . . . . . . . . . Lose Combat Pursuer 945 | . 75 . . . 60 30 45 45 . . . . . 315 105 . . 15 . 60 15 . 90 . . 90 Influence Decreases 13559 | 30 361 359 8 53 545 72 1175 40 375 617 662 275 56 814 1802 1052 1247 225 386 301 233 97 238 557 716 1263 Entered New Map 3956 | . . 113 8 . . 72 254 . 265 105 207 54 23 . 818 734 565 . 125 7 . 92 . 55 137 322 Time Decay 7558 | 30 331 166 . 53 460 . 471 . 110 392 445 221 33 414 534 318 682 115 261 294 233 5 238 502 559 691 Lost Part 420 | . 30 40 . . 50 . . . . . 10 . . 20 20 . . 10 . . . . . . 10 230 Lost Ally 1025 | . . 40 . . 35 . . 40 . 120 . . . 380 280 . . 100 . . . . . . 10 20 Purge Threat 600 | . . . . . . . 450 . . . . . . . 150 . . . . . . . . . . . Squads Dispatched 83 | . 4 . . . 2 . 1 . 1 3 . . . 15 6 . . 4 3 . . . . 5 7 32 Investigation 13 | . 2 . . . 2 . . . . . . . . 2 . . . 2 2 . . . . 3 . . Extermination 14 | . . . . . . . . . . 2 . . . 2 . . . . 1 . . . . . 3 6 Reinforcement 30 | . 2 . . . . . 1 . 1 1 . . . 8 3 . . 2 . . . . . 2 4 6 Assault 24 | . . . . . . . . . . . . . . 1 3 . . . . . . . . . . 20 Garrison 2 | . . . . . . . . . . . . . . 2 . . . . . . . . . . . . Intercept . | . . . . . . . . . . . . . . . . . . . . . . . . . . . Searches Triggered . | . . . . . . . . . . . . . . . . . . . . . . . . . . . Construction Impeded 5 | . . . . . . . . . . . . . . . 1 . . 1 . . . . . . . 3 Haulers Reinforced 2 | . . . . . . . . . . . . . . . . . . . . . . . . . 2 . Active Scanning Responses . | . . . . . . . . . . . . . . . . . . . . . . . . . . . Cargo Convoy Interrupts 1 | . . . . . . . . . . . . . . 1 . . . . . . . . . . . . Stealth | -11 -10 -10 -10 -9 -8 -8 -8 -8 -7 -7 -7 -5 -5 -5 -5 -5 -5 -5 -4 -4 -4 -4 -3 -3 -3 -2 --------- Run | Yrd Mat Min Exi Min Mat Gar Mat Gar Fac Sto Rec Fac Was Fac Ext Cet Arc Hub Fac Upp Upp Zhi Pro Res Tes Res Distress Signals 23 | . 2 . . . 2 . 4 . . 2 1 . . 3 2 2 . . . . . . . 3 1 1 Communications Jammed 11 | . . . . . . . . . . . . . . . . . . . . . . . . . 11 . Distress Signals 11 | . . . . . . . . . . . . . . . . . . . . . . . . . 11 . Times Spotted 618 | . 26 6 . 3 39 15 29 24 1 22 6 5 1 56 47 9 17 21 8 15 17 . 19 30 46 156 Peak Tracking Total 29 | . 5 2 . 3 5 6 6 5 2 3 3 3 . 16 9 5 3 12 3 4 4 . 5 5 7 29 Tactical Retreats 34 | . 3 . . . 3 1 2 3 . . . . . 5 4 . . 1 . 2 1 . 3 . . 6 Traps | -11 -10 -10 -10 -9 -8 -8 -8 -8 -7 -7 -7 -5 -5 -5 -5 -5 -5 -5 -4 -4 -4 -4 -3 -3 -3 -2 ------- Run | Yrd Mat Min Exi Min Mat Gar Mat Gar Fac Sto Rec Fac Was Fac Ext Cet Arc Hub Fac Upp Upp Zhi Pro Res Tes Res Traps Triggered 35 | . 1 . . . 1 3 . 10 . 3 . 1 . . 9 . . . 1 . . . . 2 1 3 Indirectly . | . . . . . . . . . . . . . . . . . . . . . . . . . . . Trap Hack Attempts . | . . . . . . . . . . . . . . . . . . . . . . . . . . . Triggered . | . . . . . . . . . . . . . . . . . . . . . . . . . . . Disarmed . | . . . . . . . . . . . . . . . . . . . . . . . . . . . Reprogrammed . | . . . . . . . . . . . . . . . . . . . . . . . . . . . Reused . | . . . . . . . . . . . . . . . . . . . . . . . . . . . Traps Extracted . | . . . . . . . . . . . . . . . . . . . . . . . . . . . Installed . | . . . . . . . . . . . . . . . . . . . . . . . . . . . Triggered . | . . . . . . . . . . . . . . . . . . . . . . . . . . . Machines | -11 -10 -10 -10 -9 -8 -8 -8 -8 -7 -7 -7 -5 -5 -5 -5 -5 -5 -5 -4 -4 -4 -4 -3 -3 -3 -2 ---------- Run | Yrd Mat Min Exi Min Mat Gar Mat Gar Fac Sto Rec Fac Was Fac Ext Cet Arc Hub Fac Upp Upp Zhi Pro Res Tes Res Machines Disabled 53 | . 1 . . . 2 . 4 . . 8 3 1 . 5 6 . 4 4 . . . . . . 11 4 Max in Single Turn 2 | . 1 . . . 1 . 1 . . 1 1 1 . 1 1 . 1 1 . . . . . . 2 1 Garrison Access 8 | . . . . . . . . . 1 . . 2 . 1 . . . 2 . . . . . . . 2 Network Hub 2 | . . . . . . . . . . . . . . . . . . 2 . . . . . . . . Machines Repaired . | . . . . . . . . . . . . . . . . . . . . . . . . . . . Machines Dismantled . | . . . . . . . . . . . . . . . . . . . . . . . . . . . Machines Sabotaged 1 | . . . . . . . . . . . . . . . . . . 1 . . . . . . . . Overloaded Fab Kills . | . . . . . . . . . . . . . . . . . . . . . . . . . . . Hacking | -11 -10 -10 -10 -9 -8 -8 -8 -8 -7 -7 -7 -5 -5 -5 -5 -5 -5 -5 -4 -4 -4 -4 -3 -3 -3 -2 --------- Run | Yrd Mat Min Exi Min Mat Gar Mat Gar Fac Sto Rec Fac Was Fac Ext Cet Arc Hub Fac Upp Upp Zhi Pro Res Tes Res Machines Accessed 103 | . 7 . 2 1 8 2 9 2 3 6 12 4 . 8 12 1 . 5 1 2 1 4 . 5 3 5 Terminals 67 | . 6 . . . 6 2 7 2 1 6 6 2 . 5 12 1 . 3 . . . . . 2 3 3 Fabricators 5 | . . . . . . . . . 1 . . . . 1 . . . . 1 . . . . 1 . 1 Repair Stations 2 | . . . . . 1 . 1 . . . . . . . . . . . . . . . . . . . Recycling Units 7 | . 1 . . . . . . . . . 5 . . . . . . . . . . . . 1 . . Scanalyzers 2 | . . . . . . . . . . . . . . 1 . . . . . . . . . 1 . . Garrison Access 9 | . . . . . 1 . 1 . 1 . . 2 . 1 . . . 2 . . . . . . . 1 Total Hacks 221 | . 18 . 2 1 22 2 30 2 4 10 37 5 . 17 17 1 . 6 2 2 1 17 . 8 5 12 Successful 132 | . 11 . 2 1 13 2 20 2 2 5 16 4 . 8 7 1 . 5 2 2 1 17 . 6 1 4 Failed 88 | . 7 . . . 9 . 9 . 2 5 21 1 . 9 10 . . 1 . . . . . 2 4 8 Catastrophic 20 | . 1 . . . 1 . 1 . . 3 . . . 2 4 . . 1 . . . . . . 2 5 Database Lockouts 1 | . . . . . . . 1 . . . . . . . . . . . . . . . . . . . Manual 107 | . 17 . 1 . 19 . 17 . 2 5 26 3 . 7 2 1 . 4 . . . . . . . 3 Terminals 147 | . 17 . . . 19 2 27 2 2 10 20 3 . 8 17 1 . 4 . . . . . 2 5 8 Fabricators 12 | . . . . . . . . . 1 . . . . 3 . . . . 2 . . . . 3 . 3 Repair Stations 4 | . . . . . 2 . 2 . . . . . . . . . . . . . . . . . . . Recycling Units 17 | . 1 . . . . . . . . . 15 . . . . . . . . . . . . 1 . . Scanalyzers 7 | . . . . . . . . . . . . . . 5 . . . . . . . . . 2 . . Garrison Access 9 | . . . . . 1 . 1 . 1 . . 2 . 1 . . . 2 . . . . . . . 1 Terminal Hacks 59 | . 1 . 2 1 2 2 8 2 . 4 3 1 . 1 7 1 . 1 . 2 1 17 . 1 1 1 Record 7 | . . . 1 . . . . . . . . . . . . . . . . 1 . 5 . . . . Part Schematic 8 | . 1 . . . 1 . . . . . 1 . . . . . . 1 . . . 4 . . . . Robot Analysis 7 | . . . . . 1 . 2 . . . . . . . . . . . . . . 4 . . . . Prototype ID Bank 5 | . . . . . . . 1 . . . . . . . . . . . . . . 4 . . . . Open Door 17 | . . . . 1 . . . 1 . 4 . . . 1 6 1 . . . 1 1 . . . 1 . Branch Access Points 2 | . . . . . . . . . . . . 1 . . . . . . . . . . . 1 . . Emergency Access Points 1 | . . . . . . 1 . . . . . . . . . . . . . . . . . . . . Terminal Index 1 | . . . . . . . . . . . . . . . . . . . . . . . . . . 1 Garrison Index 1 | . . . . . . . 1 . . . . . . . . . . . . . . . . . . . Unreport Threat 4 | . . . . . . . 3 . . . . . . . 1 . . . . . . . . . . . Locate Traps 1 | . . . . . . . 1 . . . . . . . . . . . . . . . . . . . Garrison Registry 2 | . . . . . . 1 . 1 . . . . . . . . . . . . . . . . . . Proto ID Catalog 1 | . . . 1 . . . . . . . . . . . . . . . . . . . . . . . Release Object 2 | . . . . . . . . . . . 2 . . . . . . . . . . . . . . . Fabricator Hacks 6 | . . . . . . . . . 1 . . . . 1 . . . . 2 . . . . 2 . . Load Schematic 3 | . . . . . . . . . . . . . . 1 . . . . 1 . . . . 1 . . Build 3 | . . . . . . . . . 1 . . . . . . . . . 1 . . . . 1 . . Repair Station Hacks 4 | . . . . . 2 . 2 . . . . . . . . . . . . . . . . . . . Scan Component 2 | . . . . . 1 . 1 . . . . . . . . . . . . . . . . . . . Repair 2 | . . . . . 1 . 1 . . . . . . . . . . . . . . . . . . . Recycling Unit Hacks 4 | . . . . . . . . . . . 3 . . . . . . . . . . . . 1 . . Retrieve Components 4 | . . . . . . . . . . . 3 . . . . . . . . . . . . 1 . . Scanalyzer 6 | . . . . . . . . . . . . . . 4 . . . . . . . . . 2 . . Insert Component 3 | . . . . . . . . . . . . . . 2 . . . . . . . . . 1 . . Analyze 3 | . . . . . . . . . . . . . . 2 . . . . . . . . . 1 . . Garrison Access Hacks 9 | . . . . . 1 . 1 . 1 . . 2 . 1 . . . 2 . . . . . . . 1 Unlock Access 2 | . . . . . 1 . 1 . . . . . . . . . . . . . . . . . . . Seal Access 7 | . . . . . . . . . 1 . . 2 . 1 . . . 2 . . . . . . . 1 Unauthorized Hacks 44 | . 10 . . . 8 . 9 . . 1 10 1 . 1 . . . 2 . . . . . . . 2 Terminals 40 | . 9 . . . 8 . 9 . . 1 7 1 . 1 . . . 2 . . . . . . . 2 Track 2 | . . . . . . . 2 . . . . . . . . . . . . . . . . . . . Botnet 13 | . 4 . . . 2 . 1 . . . 2 1 . 1 . . . . . . . . . . . 2 Skim 23 | . 5 . . . 6 . 6 . . 1 5 . . . . . . . . . . . . . . . Sabotage 2 | . . . . . . . . . . . . . . . . . . 2 . . . . . . . . Fabricators . | . . . . . . . . . . . . . . . . . . . . . . . . . . . Repair Stations . | . . . . . . . . . . . . . . . . . . . . . . . . . . . Recycling Units 4 | . 1 . . . . . . . . . 3 . . . . . . . . . . . . . . . Mask 2 | . . . . . . . . . . . 2 . . . . . . . . . . . . . . . Tunnel 2 | . 1 . . . . . . . . . 1 . . . . . . . . . . . . . . . Scanalyzers . | . . . . . . . . . . . . . . . . . . . . . . . . . . . Garrison Access . | . . . . . . . . . . . . . . . . . . . . . . . . . . . Data Cores Recovered 1 | . . . . . . . . . . . . . . . . . . . . . . . . . . 1 Used . | . . . . . . . . . . . . . . . . . . . . . . . . . . . Hacking Detections 65 | . 6 . . . 6 1 8 . 1 3 11 2 . 7 8 . . 2 1 . . . . 3 2 4 Full Trace Events 5 | . . . . . . . . . . . 1 . . 2 . . . . 1 . . . . 1 . . Feedback Events . | . . . . . . . . . . . . . . . . . . . . . . . . . . . Feedback Blocked . | . . . . . . . . . . . . . . . . . . . . . . . . . . . Robot Schematics Acquired 1 | . . . . . . . . . . . . . . . . . . . . . . . . . 1 . Robots Built . | . . . . . . . . . . . . . . . . . . . . . . . . . . . Authchips . | . . . . . . . . . . . . . . . . . . . . . . . . . . . Time . | . . . . . . . . . . . . . . . . . . . . . . . . . . . Total Robot Build Rating . | . . . . . . . . . . . . . . . . . . . . . . . . . . . Part Schematics Acquired 13 | . 1 . . . 1 . . . . . 1 . . 2 . . . 1 . . . 4 . 1 2 . Parts Built 5 | . . . . . . . . . 2 . . . . . . . . . 2 . . . . 1 . . Authchips . | . . . . . . . . . . . . . . . . . . . . . . . . . . . Time 285 | . . . . . . . . . 106 . . . . . . . . . 95 . . . . 84 . . Total Part Build Rating 26 | . . . . . . . . . 12 . . . . . . . . . 10 . . . . 4 . . Parts Repaired 2 | . . . . . 1 . 1 . . . . . . . . . . . . . . . . . . . Time 82 | . . . . . 44 . 38 . . . . . . . . . . . . . . . . . . . Parts Recycled . | . . . . . . . . . . . . . . . . . . . . . . . . . . . Recycled Matter . | . . . . . . . . . . . . . . . . . . . . . . . . . . . Retrieved Matter . | . . . . . . . . . . . . . . . . . . . . . . . . . . . Retrieved Components 21 | . . . . . . . . . . . 21 . . . . . . . . . . . . . . . Parts Scanalyzed 3 | . . . . . . . . . . . . . . 2 . . . . . . . . . 1 . . Part Schematics Acquired 3 | . . . . . . . . . . . . . . 2 . . . . . . . . . 1 . . Parts Damaged 2 | . . . . . . . . . . . . . . 2 . . . . . . . . . . . . Bothacking | -11 -10 -10 -10 -9 -8 -8 -8 -8 -7 -7 -7 -5 -5 -5 -5 -5 -5 -5 -4 -4 -4 -4 -3 -3 -3 -2 ------------ Run | Yrd Mat Min Exi Min Mat Gar Mat Gar Fac Sto Rec Fac Was Fac Ext Cet Arc Hub Fac Upp Upp Zhi Pro Res Tes Res Used RIF Installer 2 | . . . . . . 1 . 1 . . . . . . . . . . . . . . . . . . Robot Detection 1 | . . . . . . . . 1 . . . . . . . . . . . . . . . . . . Robots Hacked . | . . . . . . . . . . . . . . . . . . . . . . . . . . . Non-combat . | . . . . . . . . . . . . . . . . . . . . . . . . . . . Combat . | . . . . . . . . . . . . . . . . . . . . . . . . . . . Robot Hacks Applied . | . . . . . . . . . . . . . . . . . . . . . . . . . . . Relay Couplers Released 6 | . . . . . . . . . . . . . . 3 . . . . . . . . . . . 3 Machine Destruction 3 | . . . . . . . . . . . . . . . . . . . . . . . . . . 3 Programmers 3 | . . . . . . . . . . . . . . 3 . . . . . . . . . . . . Fabnet Peak Effective % . | . . . . . . . . . . . . . . . . . . . . . . . . . . . Robots Rewired 14 | . . . . . . 2 . 2 . . . . . . 10 . . . . . . . . . . . Allies Hacked 2 | . . . . . . . . . . . . . . 2 . . . . . . . . . . . . Hacks Repelled . | . . . . . . . . . . . . . . . . . . . . . . . . . . . Allies | -11 -10 -10 -10 -9 -8 -8 -8 -8 -7 -7 -7 -5 -5 -5 -5 -5 -5 -5 -4 -4 -4 -4 -3 -3 -3 -2 -------- Run | Yrd Mat Min Exi Min Mat Gar Mat Gar Fac Sto Rec Fac Was Fac Ext Cet Arc Hub Fac Upp Upp Zhi Pro Res Tes Res Total Allies 64 | . . 4 . 2 . 2 . 2 . 10 . . 20 . 19 5 . . . . . . . . . . Largest Group 20 | . . 3 . 2 2 2 2 2 . 10 3 . 20 20 11 8 7 7 . . . . . . . . Highest-Rated Group 813 | . . 40 . 45 45 70 70 56 . 173 48 . 812 813 344 706 547 547 . . . . . . . . Highest-Rated Ally 159 | . . 31 . 31 31 39 39 31 . 29 16 . 50 50 159 159 96 96 . . . . . . . . Total Orders 85 | . . . . . . . . . . . 1 . . 62 . 2 2 6 . . . . . 9 1 2 STAY 9 | . . . . . . . . . . . 1 . . 2 . 1 1 4 . . . . . . . . FOLLOW 2 | . . . . . . . . . . . . . . . . 1 1 . . . . . . . . . EXPLORE 65 | . . . . . . . . . . . . . . 55 . . . 1 . . . . . 6 1 2 RETURN 9 | . . . . . . . . . . . . . . 5 . . . 1 . . . . . 3 . . Ally Attacks 544 | . . 9 . . 4 . 52 28 . 62 5 . 2 125 180 24 26 27 . . . . . . . . Total Damage 12173 | . . 123 . . 65 . 530 467 . 782 75 . 142 4722 3036 733 867 631 . . . . . . . . Kills 87 | . . 3 . . 1 . 6 3 . 6 1 . 1 29 25 5 3 4 . . . . . . . . Allies Corrupted 3 | . . . . . . . . . . . . . . . . . . 3 . . . . . . . . Allies Melted . | . . . . . . . . . . . . . . . . . . . . . . . . . . . Intel | -11 -10 -10 -10 -9 -8 -8 -8 -8 -7 -7 -7 -5 -5 -5 -5 -5 -5 -5 -4 -4 -4 -4 -3 -3 -3 -2 ------- Run | Yrd Mat Min Exi Min Mat Gar Mat Gar Fac Sto Rec Fac Was Fac Ext Cet Arc Hub Fac Upp Upp Zhi Pro Res Tes Res Active Infowar (turns) 13165 | 21 416 . . . . . . . . . 880 487 299 339 . . 46 258 490 1849 2270 314 1899 1001 908 1688 Optics 619 | . . . . . . . . . . . . . . . . . . . . . . . . 619 . . Sensors 10398 | . . . . . . . . . . . . 464 299 339 . . 46 258 490 1849 2270 314 1899 395 207 1568 Structural 990 | . . . . . . . . . . . 880 110 . . . . . . . . . . . . . . Seismic 499 | 21 416 . . . . . . . . . . . . . . . . . . . . . . . . 62 Jamming 1565 | . . . . . . . . . . . . . . . . . . . . . . . . 533 807 225 Robot Analysis Total 7 | . . . . . 1 . 2 . . . . . . . . . . . . . . 4 . . . . Derelict Logs Recovered 5 | . . . . . . . . . . . . . . . . . . . . 3 2 . . . . . Drone Launches 97 | . . . . . . . . . . . . . . 87 . . . 1 . . . . . 6 1 2 Drone Recoveries 80 | . . . . . . . . . . . . . . 73 . . . 1 . . . . . 6 . . Exploration | -11 -10 -10 -10 -9 -8 -8 -8 -8 -7 -7 -7 -5 -5 -5 -5 -5 -5 -5 -4 -4 -4 -4 -3 -3 -3 -2 ------------- Run | Yrd Mat Min Exi Min Mat Gar Mat Gar Fac Sto Rec Fac Was Fac Ext Cet Arc Hub Fac Upp Upp Zhi Pro Res Tes Res Turns Passed 34279 | 241 1159 669 432 260 1386 449 1217 707 229 939 4025 607 338 1386 1500 701 2749 497 621 2354 2929 338 2271 1352 1654 3269 Spaces Moved 14238 | 176 617 343 360 134 832 305 679 411 155 471 1667 343 151 751 507 219 235 218 238 1010 1090 153 982 486 559 1146 Core 64 | 4 . . . . . . . . . . . . . . . . . . . . . . . . . 60 Treads . | . . . . . . . . . . . . . . . . . . . . . . . . . . . Legs . | . . . . . . . . . . . . . . . . . . . . . . . . . . . Wheels 14174 | 172 617 343 360 134 832 305 679 411 155 471 1667 343 151 751 507 219 235 218 238 1010 1090 153 982 486 559 1086 Hover . | . . . . . . . . . . . . . . . . . . . . . . . . . . . Flight . | . . . . . . . . . . . . . . . . . . . . . . . . . . . Fastest Speed 50 | 50 100 105 105 120 110 125 110 115 130 145 130 151 166 165 165 189 194 195 180 190 190 205 200 185 193 50 Average Speed 170 | 98 106 113 116 120 130 125 127 128 140 159 156 159 166 167 186 191 194 195 197 195 203 205 203 203 214 227 Slowest Speed 273 | 100 115 130 120 120 170 125 135 130 160 160 255 166 166 181 273 194 195 195 210 205 205 220 220 206 238 262 Overloaded Moves . | . . . . . . . . . . . . . . . . . . . . . . . . . . . Propulsion Burnouts . | . . . . . . . . . . . . . . . . . . . . . . . . . . . Robots Hopped . | . . . . . . . . . . . . . . . . . . . . . . . . . . . Potential Cave-ins . | . . . . . . . . . . . . . . . . . . . . . . . . . . . Cave-ins Triggered 1 | . . . . . . . . . . . . . . . . . . . . . . . . . . 1 Teleports 1 | . . . . . . . . . . . . . . . . . . . . . . . . . . 1 Exploration Rate (%) 59 | 6 88 44 71 31 74 58 75 67 7 77 97 11 81 55 67 66 86 36 5 92 97 62 95 50 63 39 Regions Visited 26 Branch Regions 14 Pre-discovered Areas 17 | . 2 . 1 . 2 . 2 . . . 5 . . . . . . . . 1 1 3 . . . . Known Exits Taken 17 | . . 1 . . 1 . 1 . 1 . 1 . . 1 1 1 1 1 1 1 1 1 1 1 1 . Unknown Exits Taken 5 | 1 1 . 1 1 . . . . . 1 . . . . . . . . . . . . . . . . Scrap Searched 8 | . . . . . . . . . . . . . . . . . . . . 2 4 . 2 . . . Spaces Dug 69 | . . . . . . . 2 . . . . 4 . 12 . . . 5 3 1 . . . 8 8 26 Terrain Destroyed 553 | . . . . 4 6 12 35 . . . 4 5 . 54 39 25 7 38 13 3 7 . 6 34 113 148 Melee 2 | . . . . . . . . . . . . 2 . . . . . . . . . . . . . . Projectile 304 | . . . . 4 6 12 7 . . . 4 3 . 20 39 3 7 6 5 3 7 . 6 25 74 73 AOE 247 | . . . . . . . 28 . . . . . . 34 . 22 . 32 8 . . . . 9 39 75 Terrain Rammed . | . . . . . . . . . . . . . . . . . . . . . . . . . . . Walls Destroyed . | . . . . . . . . . . . . . . . . . . . . . . . . . . . Machines Disabled . | . . . . . . . . . . . . . . . . . . . . . . . . . . . Actions | -11 -10 -10 -10 -9 -8 -8 -8 -8 -7 -7 -7 -5 -5 -5 -5 -5 -5 -5 -4 -4 -4 -4 -3 -3 -3 -2 --------- Run | Yrd Mat Min Exi Min Mat Gar Mat Gar Fac Sto Rec Fac Was Fac Ext Cet Arc Hub Fac Upp Upp Zhi Pro Res Tes Res Total 23290 | 209 1025 574 373 235 1041 348 996 557 165 616 3051 399 239 855 982 487 2512 275 375 1370 1759 171 1213 818 973 1672 Wait 6399 | . 324 196 . 92 80 6 236 43 . 36 1219 12 76 11 85 212 2239 10 75 300 588 . 167 170 194 28 Move 14211 | 175 616 342 359 133 831 303 678 409 154 470 1666 343 150 750 506 218 234 217 237 1009 1089 152 981 485 558 1146 Hop . | . . . . . . . . . . . . . . . . . . . . . . . . . . . Pick Up 357 | 9 17 2 7 6 21 . 18 2 5 12 41 10 4 16 29 17 4 11 15 11 11 4 4 18 22 41 Fast Attach 94 | 7 . . . . 12 . 7 3 1 7 1 5 . 10 2 1 3 1 2 . . 3 . 10 11 8 Attach 84 | . 3 3 1 . 11 . 1 1 1 2 6 . . 6 7 2 2 . 4 2 . 3 1 6 7 15 Detach 20 | . . . . . 2 . . . . 1 2 . . 2 3 . 1 . 2 . . . 1 1 4 1 Swap 224 | . 4 . 2 . 10 1 5 4 1 13 1 3 4 2 5 5 2 9 13 13 16 2 11 23 35 40 Drop 396 | 1 8 . 4 4 26 1 23 8 1 15 49 16 5 25 26 15 6 9 16 11 10 3 3 25 37 49 Fire 1052 | 17 53 31 . . 48 17 28 39 2 39 3 6 . 33 85 17 21 18 11 24 45 . 44 80 105 286 Melee 91 | . . . . . . . . . . 5 63 4 . . 14 . . . . . . 4 1 . . . Ram . | . . . . . . . . . . . . . . . . . . . . . . . . . . . Kick . | . . . . . . . . . . . . . . . . . . . . . . . . . . . Crush . | . . . . . . . . . . . . . . . . . . . . . . . . . . . Escape Stasis 201 | . . . . . . 15 . 40 . 16 . . . . 72 . . . . . . . . . . 58 Rewire 161 | . . . . . . 5 . 8 . . . . . . 148 . . . . . . . . . . . Trap . | . . . . . . . . . . . . . . . . . . . . . . . . . . . Miscellaneous . | . . . . . . . . . . . . . . . . . . . . . . . . . . . Route ------- -11/Scrapyard -10/Materials (discovered 6 exits: *Mat x3 / [*Min x2] / Sub) -10/Mines (discovered 4 exits: *Mat x2 / *Exi / Sub) -10/Exiles -9/Mines -8/Materials (discovered 4 exits: *Fac x3 / Gar) -8/Garrison (discovered 3 exits: *Mat x3) -8/Materials (discovered 4 exits: *Fac x3 / Gar) -8/Garrison (discovered 3 exits: *Fac x3) -7/Factory (discovered 3 exits: Fac / *Sto / Low) -7/Storage (discovered 2 exits: *Fac / *Rec) -7/Recycling -5/Factory (discovered 7 exits: Fac x3 / Upp x2 / Ext x2) -5/Waste -5/Factory (discovered 5 exits: *Fac x3 / *Upp / *Ext) -5/Extension (discovered 2 exits: *Fac / *Cet) -5/Cetus (discovered 2 exits: *Fac / *Arc) -5/Archives (discovered 3 exits: *Fac / *Hub x2) -5/Hub_04(d) -4/Factory -4/Upper Caves -4/Upper Caves (discovered 2 exits: *Res / *Zhi) -4/Zhirov -3/Proximity Caves -3/Research (discovered 4 exits: Res / Arm / *Tes x2) -3/Testing -2/Research History --------- Turn | Location | Event 31 | -11/Scrapyard | Discovered new exit (range 15) 242 | -11/Scrapyard | Entered Materials 311 | -10/Materials | Build established: Mutant 481 | -10/Materials | Discovered new exit (range 9) 650 | -10/Materials | Discovered new exit (range 14) 767 | -10/Materials | Discovered new exit (range 8) 873 | -10/Materials | Discovered new exit (range 5) 946 | -10/Materials | Discovered new exit (range 5) 1016 | -10/Materials | Learned 2 Storage zone layouts 1100 | -10/Materials | Loaded intel: 1 repair station location 1129 | -10/Materials | Identified exit to Subcaves 1142 | -10/Materials | Derelicts attacked the area 1149 | -10/Materials | Learned 2 Mines zone layouts 1161 | -10/Materials | Learned 4 Recycling zone layouts 1248 | -10/Materials | Learned location of Storage (-7) 1382 | -10/Materials | Core integrity fell below 50% 1401 | -10/Materials | Entered Mines 1403 | -10/Mines | Identified exit to Materials 1403 | -10/Mines | Identified exit to Exiles 1404 | -10/Mines | Received a Mining Laser from a helpful Derelict 1404 | -10/Mines | Destroyed 7 combat bots 1521 | -10/Mines | Lost 3 parts (1n1u1w) 1537 | -10/Mines | Deemed a non-threat by the Exiles lab entrance 1587 | -10/Mines | Assisted by bots powering up and referring to "LRC-V3" 1621 | -10/Mines | Excavation squad dispatched 1621 | -10/Mines | A large section of the Mines collapsed 1859 | -10/Mines | Discovered exit to Materials (range 12) 1942 | -10/Mines | Found a Scrap Suit stashed away for nefarious purposes 2007 | -10/Mines | Core integrity fell below 20% 2070 | -10/Mines | Entered Exiles 2102 | -10/Exiles | Met 8R-AWN 2118 | -10/Exiles | Met EX-HEX 2179 | -10/Exiles | Met EX-DEC 2256 | -10/Exiles | Discovered new exit (range 10) 2304 | -10/Exiles | Learned location of Zion (-7) 2326 | -10/Exiles | Met EX-BIN 2343 | -10/Exiles | Aligned with FarCom system 2344 | -10/Exiles | Given EX-Vault access code 2372 | -10/Exiles | Opened EX-Vault 2379 | -10/Exiles | Found AWS/Gauss 2383 | -10/Exiles | Found Supersonic Drone Bay 2385 | -10/Exiles | Found Longsword +1 2411 | -10/Exiles | Warned to stay clear of 0b10 Research branches 2502 | -10/Exiles | Stole three prototypes: AWS/Gauss, Supersonic Drone Bay, Longsword +1 2502 | -10/Exiles | Entered Mines 2509 | -9/Mines | Met a Derelict bent on vengeance 2585 | -9/Mines | Discovered new exit (range 7) 2617 | -9/Mines | Met a Derelict who couldn't figure out how to use a Trap Extractor 2762 | -9/Mines | Entered Materials 2762 | -8/Materials | Accompanied by 2 allies 2762 | -8/Materials | Evolved 4 slots: Utility x2, Weapon x2 2767 | -8/Materials | Led the pair of lost Derelicts to an unsafe place 2915 | -8/Materials | Lost 3 allies 2988 | -8/Materials | Lost 4 parts (2n2w) 3098 | -8/Materials | Repaired Gauss Rifle 3110 | -8/Materials | Discovered new exit (range 10) 3252 | -8/Materials | Build established: Scavenger-Gunner 3397 | -8/Materials | Discovered new exit (range 16) 3720 | -8/Materials | Learned Factory trap positions 3798 | -8/Materials | Learned location of 1 exit from Extension 3868 | -8/Materials | Learned location of Extension (-5) 3900 | -8/Materials | Build established: Tank 3929 | -8/Materials | Learned location of 2 exits from Factory 3978 | -8/Materials | Learned Storage security intel 4036 | -8/Materials | Learned location of 1 exit from Recycling 4049 | -8/Materials | Discovered new exit (range 14) 4105 | -8/Materials | Learned location of Lower Caves (-7) 4146 | -8/Materials | Identified exit to Garrison 4148 | -8/Materials | Entered Garrison 4218 | -8/Garrison | Triggered checkpoint 4296 | -8/Garrison | Installed Relay Interface Framework 4392 | -8/Garrison | Triggered checkpoint 4418 | -8/Garrison | Discovered new exit (range 58) 4418 | -8/Garrison | Discovered new exit (range 13) 4418 | -8/Garrison | Discovered new exit (range 76) 4456 | -8/Garrison | Build established: Hacker-Skirmisher 4597 | -8/Garrison | Entered Materials 4597 | -8/Materials | Accompanied by 2 allies 4697 | -8/Materials | Repaired Hvy. Assault Cannon 5214 | -8/Materials | Central database locked down 5372 | -8/Materials | Discovered new exit (range 16) 5553 | -8/Materials | Build established: Skirmisher 5575 | -8/Materials | Discovered new exit (range 15) 5600 | -8/Materials | Learned 2 Lower Caves zone layouts 5680 | -8/Materials | Learned Storage stockpile data 5703 | -8/Materials | Learned 2 Lower Caves zone layouts 5719 | -8/Materials | Learned Factory fabricator intel 5760 | -8/Materials | Identified exit to Factory 5813 | -8/Materials | Identified exit to Garrison 5814 | -8/Materials | Entered Garrison 5906 | -8/Garrison | Triggered checkpoint 5970 | -8/Garrison | Triggered checkpoint 6132 | -8/Garrison | Expanded RIF knowledge: Robot Detection 6161 | -8/Garrison | Discovered exit to Factory (range 7) 6214 | -8/Garrison | Triggered checkpoint 6262 | -8/Garrison | Triggered checkpoint 6349 | -8/Garrison | Discovered exit to Factory (range 10) 6495 | -8/Garrison | Discovered exit to Factory (range 12) 6501 | -8/Garrison | Discovered exit to Factory (range 45) 6501 | -8/Garrison | Discovered exit to Factory (range 59) 6501 | -8/Garrison | Discovered exit to Factory (range 16) 6521 | -8/Garrison | Entered Factory 6521 | -7/Factory | Evolved 2 slots: Power x1, Utility x1 6522 | -7/Factory | Identified exit to Storage 6523 | -7/Factory | Identified exit to Factory 6523 | -7/Factory | Identified exit to Lower Caves 6523 | -7/Factory | FarCom data flow suspended 6524 | -7/Factory | Loaded intel: 114 trap records 6525 | -7/Factory | Loaded intel: 6 fabricator locations 6730 | -7/Factory | Fabricated Imp. Weapon Cycler? 6750 | -7/Factory | Entered Storage 6831 | -7/Storage | Build established: Tank 7245 | -7/Storage | Discovered exit to Factory (range 16) 7286 | -7/Storage | Assisted by bots powering up and referring to "LRC-V3" 7592 | -7/Storage | Used back door to open Recycling access 7592 | -7/Storage | Discovered new exit (range 5) 7593 | -7/Storage | Build established: Commander-Tank 7657 | -7/Storage | P-60 Hacker assimilated allied Trooper 4c 7689 | -7/Storage | Entered Recycling 7689 | -7/Recycling | Accompanied by 3 allies 7690 | -7/Recycling | Identified exit to Factory 7706 | -7/Recycling | Lost 4 allies 7901 | -7/Recycling | Build established: Scavenger-Tank 7999 | -7/Recycling | Scanned before Scraplab entrance 8021 | -7/Recycling | Entered Scraplab 8027 | -7/Recycling | Angered Scraplab inhabitants 8031 | -7/Recycling | Found Prototype Device 8046 | -7/Recycling | Identified Scrap Engine 8523 | -7/Recycling | Learned location of Upper Caves (-4) 8596 | -7/Recycling | Learned location of Upper Caves (-4) 8603 | -7/Recycling | Build established: Scavenger-Mutant 8750 | -7/Recycling | Learned location of Upper Caves (-5) 8782 | -7/Recycling | Learned location of 1 exit from Cetus 8842 | -7/Recycling | Learned Factory repair station intel 8886 | -7/Recycling | Learned Hub_04(d) trap positions 8939 | -7/Recycling | Learned 2 Extension zone layouts 9014 | -7/Recycling | Build established: Mutant 10082 | -7/Recycling | Build established: Construct 11714 | -7/Recycling | Entered Factory 11714 | -5/Factory | Evolved 4 slots: Power x1, Utility x2, Weapon x1 11715 | -5/Factory | Identified exit to Factory 11716 | -5/Factory | Loaded intel: 6 repair station locations 11892 | -5/Factory | Identified exit to Upper Caves 11892 | -5/Factory | Identified exit to Extension 12321 | -5/Factory | Sucked down chute 12321 | -5/Factory | Entered Waste 12322 | -5/Waste | Joined by Warlord forces that had cleared the area 12356 | -5/Waste | Found Prototype Device 12357 | -5/Waste | Identified Exp. EM Disruption Field 12493 | -5/Waste | Found Gamma Bomb Array 12531 | -5/Waste | A Compactor rumbled back to life 12531 | -5/Waste | Spotted C-40 Crusher 12532 | -5/Waste | Allies destroyed C-40 Crusher 12542 | -5/Waste | Discovered new exit (range 13) 12570 | -5/Waste | Found Damper Plating 12572 | -5/Waste | Identified exit to Factory 12659 | -5/Waste | Entered Factory 12659 | -5/Factory | Accompanied by 20 allies 12704 | -5/Factory | Discovered exit to Upper Caves (range 4) 12949 | -5/Factory | Discovered exit to Factory (range 25) 12993 | -5/Factory | Garrison activated, responded to threat 13259 | -5/Factory | First assault squad dispatched 13385 | -5/Factory | Discovered exit to Factory (range 18) 13409 | -5/Factory | P-70 Sage assimilated allied PI-JFD(d) 13453 | -5/Factory | Lost 3 allies 13471 | -5/Factory | P-80 Master assimilated allied ZD-W7P(m) 13508 | -5/Factory | Lost 3 allies 13679 | -5/Factory | Discovered exit to Factory (range 60) 13731 | -5/Factory | Garrison activated, responded to threat 13812 | -5/Factory | Cargo convoy interrupted 13893 | -5/Factory | Lost 6 allies 13928 | -5/Factory | Destroyed 8 combat bots 14038 | -5/Factory | Discovered exit to Extension (range 6) 14045 | -5/Factory | Entered Extension 14045 | -5/Extension | Accompanied by 6 allies 14046 | -5/Extension | Identified exit to Cetus 14146 | -5/Extension | Rescued a captive Derelict 14225 | -5/Extension | Rescued a captive Derelict 14335 | -5/Extension | Rescued a captive Derelict 14376 | -5/Extension | Rescued a captive Derelict 14397 | -5/Extension | Rescued a captive Derelict 14399 | -5/Extension | Rescued a captive Derelict 14451 | -5/Extension | Rescued a captive Derelict 14516 | -5/Extension | Spotted B-75 Beast 14534 | -5/Extension | Destroyed B-75 Beast 14551 | -5/Extension | Spotted B-75 Beast 14568 | -5/Extension | Allies destroyed B-75 Beast 14595 | -5/Extension | Disrupted transfer network 14645 | -5/Extension | First assault squad dispatched 14767 | -5/Extension | Rescued a captive Derelict 14880 | -5/Extension | Lost 3 allies 15219 | -5/Extension | Rescued A7 15240 | -5/Extension | Lost 5 allies 15260 | -5/Extension | Discovered exit to Factory (range 13) 15274 | -5/Extension | Disrupted transfer network 15545 | -5/Extension | Entered Cetus 15545 | -5/Cetus | Accompanied by 3 allies (A7) 15546 | -5/Cetus | Identified exit to Archives 15550 | -5/Cetus | Acquired a Cetus Manufacturing Module code from A7 15572 | -5/Cetus | Spotted Cetus Guard 15572 | -5/Cetus | Spotted Cetus Guard 15575 | -5/Cetus | Spotted Cetus Guard 15576 | -5/Cetus | Spotted Cetus Guard 15578 | -5/Cetus | Destroyed Cetus Guard 15580 | -5/Cetus | Allies destroyed Cetus Guard 15582 | -5/Cetus | Allies destroyed Cetus Guard 15584 | -5/Cetus | Destroyed Cetus Guard 15730 | -5/Cetus | Started Cetus Manufacturing Module 15742 | -5/Cetus | Escorted A7 to Cetus Mainframe 15755 | -5/Cetus | Manufactured an Enhanced Grunt 15780 | -5/Cetus | Manufactured an Enhanced Grunt 15805 | -5/Cetus | Manufactured an Enhanced Grunt 15830 | -5/Cetus | Manufactured an Enhanced Grunt 15855 | -5/Cetus | Manufactured an Enhanced Grunt 15973 | -5/Cetus | Spotted Cetus Guard 15973 | -5/Cetus | Spotted Cetus Guard 15977 | -5/Cetus | Spotted Cetus Guard 15977 | -5/Cetus | Spotted Cetus Guard 15985 | -5/Cetus | Destroyed Cetus Guard 15985 | -5/Cetus | Destroyed Cetus Guard 15985 | -5/Cetus | Allies destroyed Cetus Guard 15987 | -5/Cetus | Allies destroyed Cetus Guard 15995 | -5/Cetus | Discovered exit to Factory (range 15) 16004 | -5/Cetus | Met Revision 17 16077 | -5/Cetus | Build established: Commander-Construct 16177 | -5/Cetus | Murdered A7 16191 | -5/Cetus | Extracted ID and sensor layout for unrecognized location from A7's data core 16196 | -5/Cetus | Found Prototype Protection 16197 | -5/Cetus | Identified Med. Regenerative Plating 16202 | -5/Cetus | System corruption reached 10% 16246 | -5/Cetus | Entered Archives 16246 | -5/Archives | Accompanied by 7 allies 16247 | -5/Archives | Identified exit to Hub_04(d) 16365 | -5/Archives | Discovered exit to Hub_04(d) (range 15) 16415 | -5/Archives | Discovered exit to Factory (range 15) 18995 | -5/Archives | Entered Hub_04(d) 18995 | -5/Hub_04(d) | Accompanied by 7 allies 18996 | -5/Hub_04(d) | Loaded intel: 8 trap records 19004 | -5/Hub_04(d) | Discovered exit to Factory (range 46) 19446 | -5/Hub_04(d) | Network Hub disabled 19450 | -5/Hub_04(d) | Spotted Lightning 19450 | -5/Hub_04(d) | Spotted Lightning 19450 | -5/Hub_04(d) | Spotted Lightning 19461 | -5/Hub_04(d) | Network Hub disabled 19465 | -5/Hub_04(d) | Destroyed Lightning 19473 | -5/Hub_04(d) | Spotted Lightning 19479 | -5/Hub_04(d) | Found Prototype Device 19480 | -5/Hub_04(d) | Spotted Lightning 19480 | -5/Hub_04(d) | Identified Exp. EM Shield 19481 | -5/Hub_04(d) | Spotted Lightning 19492 | -5/Hub_04(d) | Entered Factory 19492 | -4/Factory | Evolved 2 slots: Power x1, Utility x1 19493 | -4/Factory | Lost 4 allies 19857 | -4/Factory | Build established: Generator-Construct 19921 | -4/Factory | Fabricated Weapon Mount? 19978 | -4/Factory | Discovered new exit (range 3) 19989 | -4/Factory | Identified exit to Upper Caves 20113 | -4/Factory | Entered Upper Caves 20312 | -4/Upper Caves | Attracted the attention of an 0b10 checkpoint 20345 | -4/Upper Caves | Learned 8 Research zone layouts 20628 | -4/Upper Caves | Learned location of Quarantine (-2) 21404 | -4/Upper Caves | Identified exit to Upper Caves 21950 | -4/Upper Caves | Found Alien Artifact 22467 | -4/Upper Caves | Entered another Upper Caves area 22489 | -4/Upper Caves | Discovered new exit (range 8) 22543 | -4/Upper Caves | Identified exit to Research 23705 | -4/Upper Caves | Spotted SS-08D(f) 23705 | -4/Upper Caves | Spotted WL-2G8(f) 23706 | -4/Upper Caves | Encountered a Master Thief 23706 | -4/Upper Caves | Encountered a Master Thief 23707 | -4/Upper Caves | Spotted MR-H01(f) 23707 | -4/Upper Caves | Destroyed SS-08D(f) 23708 | -4/Upper Caves | Encountered a Master Thief 23711 | -4/Upper Caves | Supersonic Drone Bay stolen by Master Thief 23712 | -4/Upper Caves | Alien Artifact stolen by Master Thief 23712 | -4/Upper Caves | Destroyed MR-H01(f) 23714 | -4/Upper Caves | Destroyed WL-2G8(f) 24524 | -4/Upper Caves | Spotted B-86 Titan 24576 | -4/Upper Caves | Destroyed B-86 Titan 24651 | -4/Upper Caves | Learned 4 Research zone layouts 25009 | -4/Upper Caves | Attracted the attention of an 0b10 checkpoint 25322 | -4/Upper Caves | Discovered new exit (range 9) 25336 | -4/Upper Caves | Identified exit to Zhirov 25396 | -4/Upper Caves | Entered Zhirov 25396 | -4/Zhirov | Discovered new exit (range 3) 25433 | -4/Zhirov | Met Zhirov 25470 | -4/Zhirov | Learned location of Testing (-3) 25470 | -4/Zhirov | Learned location of Command (-1) 25505 | -4/Zhirov | Zhirov requested help retrieving the SGEMP Prototype 25536 | -4/Zhirov | Found Alien Artifact 25539 | -4/Zhirov | Identified Integrated Reactor 25539 | -4/Zhirov | Installed Integrated Reactor, increased core energy generation (+10) 25562 | -4/Zhirov | Found Alien Artifact 25730 | -4/Zhirov | Identified exit to Proximity Caves 25734 | -4/Zhirov | Entered Proximity Caves 26167 | -3/Proximity Caves | Spotted B-86 Titan 26211 | -3/Proximity Caves | Build established: Construct 26711 | -3/Proximity Caves | Build established: Generator-Construct 26785 | -3/Proximity Caves | Attracted the attention of an 0b10 checkpoint 27835 | -3/Proximity Caves | Discovered exit to Research (range 7) 28005 | -3/Proximity Caves | Entered Research 28005 | -3/Research | Evolved 2 slots: Utility x2 28006 | -3/Research | Identified exit to Research 28006 | -3/Research | Identified exit to Testing 28215 | -3/Research | Revision forces began assault on 0b10 28230 | -3/Research | Met up with Revision 17++ 28350 | -3/Research | Spotted B-86 Titan 28463 | -3/Research | Found Quantum Capacitor 28554 | -3/Research | Identified exit to Armory 28692 | -3/Research | Destroyed 7 combat bots 28715 | -3/Research | Research terminal network offline 29036 | -3/Research | Fabricated Mak. Microdissipator Network? 29357 | -3/Research | Entered Testing 29380 | -3/Testing | Found Prototype Processor 29380 | -3/Testing | Identified Exp. Target Analyzer 29605 | -3/Testing | Destroyed 7 combat bots 29611 | -3/Testing | Found Prototype Launcher 29655 | -3/Testing | Found Prototype Device 29656 | -3/Testing | Identified 2N-1CE's Frost Array 29797 | -3/Testing | Identified Z-bomb Delivery System 29838 | -3/Testing | Build established: Generator-Gunner 30019 | -3/Testing | Discovered exit to Research (range 3) 30052 | -3/Testing | Found Prototype Ballistic Gun 30052 | -3/Testing | Identified Hyp. Multirail 30523 | -3/Testing | Destroyed 9 combat bots 30580 | -3/Testing | Found Prototype Protection 30725 | -3/Testing | Build established: Generator-Construct 31011 | -3/Testing | Entered Research 31011 | -2/Research | Evolved 2 slots: Utility x2 31017 | -2/Research | Identified SHELL Armor 31502 | -2/Research | Build established: Gunner 32739 | -2/Research | Found Corrupted Prototype Device 33043 | -2/Research | Build established: Generator-Skirmisher 33484 | -2/Research | Found Prototype Launcher 33511 | -2/Research | First assault squad dispatched 33768 | -2/Research | Destroyed 8 combat bots 33770 | -2/Research | Crushed by falling debris 33770 | -2/Research | System corruption reached 10% 33817 | -2/Research | High security lockdown imminent 33838 | -2/Research | Destroyed 8 combat bots 33897 | -2/Research | High security lockdown engaged 34036 | -2/Research | Spotted Investigator 34036 | -2/Research | Identified Transdimensional Reconstructor 34036 | -2/Research | Warped through subspace 34093 | -2/Research | Identified Gui. Micro-nuke Launcher 34162 | -2/Research | Build established: Generator-Tank 34212 | -2/Research | Scanned by Researcher 34216 | -2/Research | Lost 13 parts (4p2n4u3w) 34222 | -2/Research | Spotted Investigator 34249 | -2/Research | Core integrity fell below 50% 34263 | -2/Research | Spotted Executioner 34267 | -2/Research | Core integrity fell below 20% 34274 | -2/Research | System corruption reached 30% 34280 | -2/Research | Destroyed by Executioner with Helical Railgun Last Messages --------------- 34261_ Executioner unfolds itself. 34261_ E-15 Imp unfolds itself. 34268_ P-80 Master resets L-61 Swordsman, system corruption cleaned. 34271_ Held in stasis. 34272_ E-15 Imp destroyed. 34273_ System corrupted: Matter fused (-5). 34274_ Held in stasis. 34274_ Investigator is analyzing... 34277_ Held in stasis. 34277_ Investigator is analyzing... 34277_ C-30 ARC bursts open, deploying its payload. 34277_ P-80 Master unfolds itself. 34277_ Executioner unfolds itself. 34277_ P-80 Master unfolds itself. 34277_ M-36 Artificer unfolds itself. 34277_ P-80 Master resets Investigator, system corruption cleaned. 34280_ Held in stasis. Map ----- +----------------------------------------------------+ | ?????????????????????????????????????????????????? | | ?????????????????????????????????????????????????? | | ?????????????????????????????????????????????????? | | ?????????????????????????????????????????????????? | | ?????????????????????????????????????????????????? | | ?????????????????????????????????????????????????? | | ?????????????????????????????????????????????????? | | ?????????????????????????????????????????????????? | | ?????????????????????????????????????????????????? | | ?????????????????????????????????????????????????? | | ?????????????????????????????????????????????????? | | ?????????????????????????????????????????????????? | | ?????????????????????????????????????????????????? | | ?????????????????????????????????????????????????? | | ?????????????????????????????????????????????????? | | ?????????????????????????????????????????????????? | | ?????????????????????????????????????????????????? | | ?????????????????????????????????????????????????? | | ?????????????????????????????????????????????????? | | ???????????????########+####?????????????????????? | | ???????????????# ##+???????????????????? | | ????????????????? ????????????????????? | | ??????????????????? p ?????????????????????? | | ????????????????????? %#?#########???????????? | | ??????????????????????# pE#? #???????????? | | ??????????????????????# @m# ?????????????? | | ??????????????????????# # """ ????????????? | | ??????????????????????# %+ """ ????????????? | | ??????????????????????# =# """ ????????????? | | ??????????????????????# # ?????????????? | | ??????????????????????# #? = #???????????? | | ??????????????????????# #? #???????????? | | ??????????????????????# l #??########???????????? | | ??????????????????????# g #?????????????????????? | | ???????????????????#### l #?????????????????????? | | ???????????????????+ #?????????????????????? | | ???????????????????#### gc#?????????????????????? | | ??????????????????????# gg#?????????????????????? | | ??????????????????????# mp #?????????????????????? | | ??????????????????????# g #????????###??????????? | | ??????????????????????# ib#########T ######+##### | | ??????????????????????# | | ??????????????????????# | | ??????????????????????# " | | ??????????????????????# "%" | | ???????????????######### "###########+######+##??? | | ?????????#?????# #"%#??????????????????????? | | ?????????# ????# /"%#??????????????????????? | | ?????????# ????# # "#??????????????????????? | | ?????????# ?#### #" #??????????????????????? | +----------------------------------------------------+ Best States ------------- Heat Dissipation 149 Coolant Potential 100 Energy Generation 90 Energy Capacity 1222 Matter Stores 300 Matter Capacity 300 Sight Range 22 Robot Scan Range 16 Terrain Scan Density 10 Jamming Range 16 Base Temperature (-) 100 Armor Coverage 900 Resistance: EM 75 Propulsion Shielding 66 Weapon Cycling 25 Phase Shifting 10 Evasion (%) 50 Targeting Accuracy 20 Core Analysis 6 Particle Charging 30 Offensive Hacking 20 Defensive Hacking 14 Item Schematics ----------------- Hcp. Storage Unit | -10/Materials | Hacked Arm. Wheel | -8/Materials | Hacked Arm. Huge Wheel | -7/Recycling | Hacked Mak. Microdissipator Network | -5/Factory | Scanalyzed Gamma Bomb Array | -5/Factory | Scanalyzed Weapon Mount | -5/Hub_04(d) | Hacked Assault Drone Bay | -4/Zhirov | Free Exp. Heat Sink | -4/Zhirov | Free Exp. Optical Array | -4/Zhirov | Free Imp. Arc Thrower | -4/Zhirov | Free Flak Gun | -3/Research | Scanalyzed Tactical Quantum Warhead | -3/Testing | Archive Hellfire Missile Launcher | -3/Testing | Archive Robot Schematics ------------------ B-74 Champion | -3/Testing | Archive Fabricated ------------ Imp. Weapon Cycler | x2 | -7/Factory | Preloaded Weapon Mount | x2 | -4/Factory Mak. Microdissipator Network | x1 | -3/Research Repaired ---------- Gauss Rifle | 20% | -8/Materials Hvy. Assault Cannon | 16% | -8/Materials Alien Tech Used ----------------- Integrated Reactor Transdimensional Reconstructor Achievements -------------- None Challenges ------------ None Game ------ Seed TowerNavigationNetwork Manual? 0 Play Time 04:47:58 Cumulative 677.5 hours Start 2025.06.04 @ 21:16:39 End 2025.06.05 @ 02:06:56 Sessions 1 Manual Loads 0 Difficulty Rogue Special Mode None Game No. 150 Rogue 150 Adventurer 0 Explorer 0 Win Type - Total 40 Types 11/6/7/2/1/1/8/2/1/1 Lore% 69 Gallery% 84 Achievement% 81 Wizard Run 0 Options --------- Layout 1 ASCII 0 Keyboard 0 Movement Mouse Keybinds 0 Fullscreen 2 Font 24/Smallcaps Map View 50x35 Zoom Use 1% Tactical HUD 1 Map Filters NONE Filters NONE Steam 1 RUN: af44ee4d-b277-4832-b407-06fdcbae7ff8